bitfinex-derivatives/quotes_BTCF0:USTF0_20250822
["timestamp","ask_amount","ask_price","bid_price","bid_amount"]
[1755872995854,0.0032,115240.0,115230.0,0.94968216]
[1755872996742,0.50723,115260.0,115250.0,0.5086927]
[1755872996950,0.50723,115260.0,115250.0,0.5957327]
[1755872997246,0.24311,115260.0,115250.0,0.75896]
[1755872997446,0.50723,115260.0,115250.0,0.75896]
[1755872997652,0.2252,115240.0,115230.0,1.88200536]
[1755872997842,0.2252,115240.0,115230.0,1.79496536]
[1755872997843,0.50723,115240.0,115230.0,1.79496536]
[1755872998153,0.50723,115240.0,115230.0,1.48193536]
[1755872998457,0.13658,115240.0,115230.0,2.21879366]
[1755872998655,0.50723,115250.0,115240.0,0.33471]
[1755872998853,0.50723,115250.0,115240.0,0.10889]
[1755872999053,1.0397912,115250.0,115230.0,1.79496536]
[1755872999355,0.50923,115240.0,115230.0,0.38687536]
[1755872999648,0.50923,115240.0,115230.0,0.61269536]
[1755872999955,0.50743,115240.0,115230.0,0.10393536]
[1755873000251,0.50743,115240.0,115230.0,0.56090286]
[1755873000549,0.13678,115240.0,115230.0,0.94968286]
[1755873000744,0.0002,115240.0,115230.0,0.94968286]
[1755873000946,0.41881,115240.0,115230.0,0.94968286]
[1755873001251,0.2254,115240.0,115230.0,0.94968286]
[1755873001452,0.0002,115240.0,115230.0,0.94968286]
[1755873002249,0.41881,115240.0,115230.0,0.61289536]
[1755873002550,0.0022,115240.0,115230.0,0.94968286]
[1755873002756,0.2252,115260.0,115250.0,0.50896]
[1755873002952,0.33173,115260.0,115250.0,1.88252]
[1755873003156,0.33173,115260.0,115250.0,1.70827]
[1755873003350,0.13658,115260.0,115250.0,1.9692924]
[1755873003551,0.08862,115270.0,115250.0,2.2192924]
[1755873003856,0.13658,115290.0,115260.0,0.2826949]
[1755873004157,0.13658,115280.0,115270.0,0.50896]
[1755873004459,0.24311,115290.0,115280.0,0.5957103]
[1755873004664,0.24311,115290.0,115280.0,1.88104]
[1755873004858,0.41861,115290.0,115280.0,1.37208]
[1755873005062,0.41861,115290.0,115280.0,1.77215]
[1755873005264,0.9511712,115290.0,115280.0,1.77215]
[1755873005567,0.13662,115300.0,115290.0,0.5957028]
[1755873005765,0.28207,115300.0,115290.0,0.50896]
[1755873005964,0.17594,115300.0,115290.0,0.50916]
[1755873006149,0.28247,115300.0,115290.0,0.50916]
[1755873006467,0.00044,115300.0,115290.0,0.5959028]
[1755873006652,0.00044,115300.0,115290.0,0.66396754]
[1755873006858,0.00044,115300.0,115290.0,0.91396754]
[1755873007059,0.55150988,115320.0,115310.0,0.42192]
[1755873007256,0.01874868,115320.0,115310.0,1.9656473]
[1755873007457,0.71552715,115340.0,115330.0,0.5956723]
[1755873007665,0.0866796,115380.0,115340.0,0.40007]
[1755873007666,0.08862,115350.0,115340.0,0.40007]
[1755873007965,0.7966812,115360.0,115350.0,0.31303]
[1755873008162,0.7966812,115360.0,115350.0,0.40007]
[1755873008562,0.7080612,115360.0,115350.0,0.40007]
[1755873008863,0.1755,115360.0,115350.0,0.40007]
[1755873009063,0.26412,115360.0,115350.0,0.40007]
[1755873009367,0.51412,115360.0,115350.0,0.40007]
[1755873009563,1.1832612,115360.0,115350.0,0.13878]
[1755873009756,1.1832612,115360.0,115350.0,0.07106735]
[1755873009757,1.1890612,115360.0,115350.0,0.07106735]
[1755873010065,0.13658,115350.0,115340.0,1.8059451]
[1755873010266,0.0004,115350.0,115340.0,1.8928504]
[1755873010462,0.0004,115350.0,115340.0,1.8061451]
[1755873010667,0.0004,115350.0,115340.0,2.1436504]
[1755873010860,0.005,115360.0,115350.0,0.40007]
[1755873011058,0.005,115360.0,115350.0,0.4867678]
[1755873011262,0.005,115360.0,115350.0,0.65007]
[1755873011570,4e-05,115390.0,115370.0,0.08704]
[1755873011571,0.40074,115390.0,115370.0,0.08704]
[1755873011875,0.9332612,115380.0,115360.0,1.59146]
[1755873012065,0.9332612,115380.0,115360.0,0.40007]
[1755873012066,0.4007,115370.0,115360.0,0.40007]
[1755873012364,0.6507,115370.0,115360.0,0.40007]
[1755873012661,0.4752,115370.0,115360.0,0.40007]
[1755873012866,0.25,115370.0,115360.0,0.40007]
[1755873013066,0.1755,115370.0,115360.0,0.40007]
[1755873013261,0.50723,115370.0,115360.0,0.50896]
[1755873013461,0.4007,115360.0,115350.0,1.50442]
[1755873013664,0.50723,115360.0,115350.0,1.50442]
[1755873014058,0.50723,115360.0,115350.0,1.36564]
[1755873014268,0.75763,115360.0,115350.0,1.36584]
[1755873014563,0.4007,115350.0,115340.0,0.05414508]
[1755873014773,0.4881977,115350.0,115340.0,0.12514906]
[1755873014956,0.7381977,115350.0,115340.0,0.01754998]
[1755873015163,1.1832612,115350.0,115340.0,0.01754998]
[1755873015463,0.6507,115350.0,115340.0,0.01754998]
[1755873015664,0.3987,115350.0,115340.0,0.48865186]
[1755873015861,0.31208,115350.0,115340.0,0.48865186]
[1755873016056,0.31208,115360.0,115340.0,0.48865186]
[1755873016264,0.13658,115370.0,115360.0,0.40007]
[1755873016469,0.8446412,115380.0,115370.0,0.31303]
[1755873016664,0.1755,115360.0,115350.0,0.13878]
[1755873016871,0.8446412,115360.0,115340.0,0.34987186]
[1755873017069,0.31208,115350.0,115340.0,0.40161186]
[1755873017365,0.14466,115370.0,115360.0,0.38907]
[1755873017565,0.14466,115370.0,115360.0,0.22978]
[1755873017566,0.39801,115370.0,115360.0,0.22978]
[1755873017768,0.39841,115370.0,115360.0,0.15949]
[1755873018072,1.2684545,115370.0,115360.0,0.0002]
[1755873018267,0.39801,115350.0,115340.0,0.07403188]
[1755873018466,0.9305712,115350.0,115340.0,0.07103188]
[1755873018664,1.2672695,115350.0,115330.0,0.1771886]
[1755873018867,0.7347159,115340.0,115330.0,0.0367686]
[1755873019174,0.7347159,115340.0,115320.0,0.01755315]
[1755873019175,0.25335,115330.0,115320.0,0.08589862]
[1755873019467,0.25335,115330.0,115320.0,0.01755315]
[1755873019671,0.7859112,115340.0,115330.0,0.15929]
[1755873019876,0.7859112,115350.0,115340.0,0.29971]
[1755873020169,0.5016988,115350.0,115340.0,0.38907]
[1755873020466,0.25335,115340.0,115330.0,0.17756058]
[1755873020674,0.25335,115340.0,115330.0,0.38907]
[1755873020866,0.25335,115350.0,115330.0,0.22978]
[1755873021057,0.64801,115350.0,115340.0,0.29971]
[1755873021262,0.39801,115350.0,115340.0,0.38907]
[1755873021463,0.0004,115350.0,115340.0,0.38927]
[1755873021774,0.0004,115350.0,115340.0,0.7267762]
[1755873021969,0.14466,115380.0,115350.0,0.0866979]
[1755873022160,0.25339,115390.0,115370.0,0.38907]
[1755873022365,4e-05,115390.0,115380.0,0.38907]
[1755873022567,4e-05,115390.0,115380.0,0.45952934]
[1755873022866,0.5597,115390.0,115380.0,0.45952934]
[1755873023075,0.64805,115390.0,115380.0,0.07045934]
[1755873023271,0.48305,115390.0,115380.0,0.29971]
[1755873023468,0.5597,115390.0,115380.0,0.38907]
[1755873023770,0.64805,115390.0,115380.0,0.22978]
[1755873023959,0.64805,115390.0,115360.0,1.359]
[1755873023960,0.08835,115380.0,115360.0,1.58878]
[1755873024165,0.08835,115380.0,115370.0,0.15929]
[1755873024166,0.39801,115380.0,115370.0,0.15929]
[1755873024365,0.23301,115380.0,115360.0,1.74675]
[1755873024565,0.14466,115380.0,115370.0,0.38907]
[1755873024766,0.40105,115390.0,115380.0,0.29971]
[1755873025068,0.40105,115390.0,115380.0,0.38907]
[1755873025069,0.3157,115390.0,115380.0,0.38907]
[1755873025370,0.40145,115390.0,115380.0,0.14062]
[1755873025574,0.65145,115390.0,115380.0,0.0002]
[1755873025768,0.64845,115390.0,115380.0,0.0002]
[1755873026073,0.64845,115390.0,115380.0,0.15949]
[1755873026267,0.65145,115390.0,115380.0,0.29991]
[1755873026472,0.00344,115390.0,115380.0,0.38927]
[1755873026878,0.00344,115390.0,115380.0,0.39007]
[1755873027169,4e-05,115400.0,115390.0,0.4757388]
[1755873027373,0.6975612,115430.0,115390.0,0.4757388]
[1755873027374,0.39801,115420.0,115410.0,0.14042]
[1755873028070,0.39801,115420.0,115410.0,0.15929]
[1755873028269,0.23301,115420.0,115400.0,0.38907]
[1755873028573,0.165,115410.0,115400.0,0.14042]
[1755873028776,0.64801,115410.0,115400.0,0.06971234]
[1755873028967,0.33835,115410.0,115390.0,1.74471]
[1755873029164,0.39801,115400.0,115390.0,1.58542]
[1755873029370,0.25335,115400.0,115380.0,0.24865]
[1755873029671,0.39801,115390.0,115380.0,0.29971]
[1755873029976,0.14466,115400.0,115380.0,0.38907]
[1755873030172,0.39801,115400.0,115390.0,0.29971]
[1755873030376,0.14506,115400.0,115390.0,0.38927]
[1755873030670,0.2504,115400.0,115390.0,0.38927]
[1755873030877,0.64841,115400.0,115390.0,0.06798388]
[1755873031271,0.64841,115400.0,115390.0,0.22727388]
[1755873031471,0.64841,115400.0,115390.0,0.36769388]
[1755873031670,0.64841,115400.0,115390.0,0.06798388]
[1755873031878,0.64841,115400.0,115390.0,0.22727388]
[1755873032175,0.64841,115400.0,115390.0,0.06798388]
[1755873032374,0.64941,115400.0,115390.0,0.22727388]
[1755873032575,0.64941,115400.0,115390.0,0.06798388]
[1755873032770,0.64941,115400.0,115390.0,0.22727388]
[1755873032971,0.2514,115400.0,115390.0,0.54372398]
[1755873033171,0.0014,115400.0,115390.0,0.54452398]
[1755873033372,0.0014,115400.0,115390.0,0.79452398]
[1755873033574,0.001,115410.0,115390.0,0.40525398]
[1755873033768,0.39801,115440.0,115400.0,0.38987]
[1755873033978,0.39801,115440.0,115420.0,0.38907]
[1755873034474,0.39801,115440.0,115430.0,0.38907]
[1755873034675,0.39801,115440.0,115430.0,0.42557111]
[1755873034877,0.39801,115440.0,115430.0,0.33621111]
[1755873035072,0.39801,115440.0,115410.0,1.58182]
[1755873035280,0.30966,115420.0,115410.0,1.74031]
[1755873035770,0.23301,115430.0,115420.0,0.38907]
[1755873035970,0.39801,115430.0,115420.0,0.14042]
[1755873036173,0.39801,115430.0,115420.0,0.03089605]
[1755873036368,0.39801,115420.0,115410.0,1.65095]
[1755873036570,0.39801,115420.0,115410.0,1.74031]
[1755873036769,0.0004,115420.0,115410.0,1.73867]
[1755873036970,0.1654,115420.0,115410.0,1.73867]
[1755873037177,0.14506,115420.0,115410.0,1.73867]
[1755873037379,0.31006,115420.0,115410.0,0.4206135]
[1755873037566,0.14506,115420.0,115410.0,0.4206135]
[1755873037973,0.64841,115420.0,115410.0,0.3312535]
[1755873038273,0.64841,115420.0,115410.0,0.6706135]
[1755873038274,0.0004,115420.0,115410.0,0.6706135]
[1755873038676,0.0004,115420.0,115410.0,0.7572696]
[1755873038978,0.0004,115420.0,115410.0,0.6714135]
[1755873039174,0.30966,115450.0,115420.0,0.38907]
[1755873039370,0.30966,115450.0,115430.0,1.34756]
[1755873039578,0.39801,115450.0,115440.0,0.22978]
[1755873039779,0.39801,115450.0,115440.0,0.14042]
[1755873040474,0.39801,115440.0,115430.0,1.48798]
[1755873040676,0.39801,115440.0,115430.0,1.34756]
[1755873041375,0.39801,115440.0,115430.0,1.64727]
[1755873041571,0.64801,115440.0,115430.0,0.29971]
[1755873042073,0.64801,115440.0,115430.0,0.38907]
[1755873042269,0.48301,115440.0,115430.0,0.38907]
[1755873042576,0.39801,115460.0,115450.0,0.38907]
[1755873042882,0.01947399,115480.0,115430.0,0.38907]
[1755873042883,0.08835,115450.0,115430.0,0.38907]
[1755873043082,0.30966,115440.0,115430.0,0.38907]
[1755873043385,0.30966,115440.0,115410.0,0.43813976]
[1755873043386,0.39881,115430.0,115410.0,0.43813976]
[1755873043578,0.39801,115420.0,115410.0,0.43813976]
[1755873043775,1.1813712,115420.0,115410.0,0.04906976]
[1755873044078,1.2680197,115420.0,115410.0,0.01772626]
[1755873044279,0.39881,115400.0,115390.0,0.06778388]
[1755873044583,0.39801,115380.0,115370.0,0.01732625]
[1755873044780,0.39801,115370.0,115350.0,0.08936]
[1755873044971,0.39801,115370.0,115360.0,0.15929]
[1755873045177,0.39801,115370.0,115350.0,0.38907]
[1755873045376,0.39801,115370.0,115360.0,0.29971]
[1755873045679,0.39801,115370.0,115350.0,0.03119968]
[1755873045680,0.25415,115360.0,115350.0,0.03119968]
[1755873045882,0.8721112,115360.0,115340.0,0.01787663]
[1755873046177,1.0359112,115350.0,115340.0,0.01787663]
[1755873046371,0.7867112,115350.0,115340.0,0.01787663]
[1755873046570,0.08835,115330.0,115310.0,0.38907]
[1755873046780,0.25335,115310.0,115300.0,0.03085099]
[1755873046984,0.5325612,115320.0,115300.0,0.38907]
[1755873047183,0.5325612,115320.0,115300.0,0.45764233]
[1755873047380,0.086702,115350.0,115310.0,0.15613]
[1755873047577,0.5325612,115330.0,115310.0,0.15613]
[1755873047887,0.5325612,115320.0,115300.0,0.03134779]
[1755873048083,0.0008,115300.0,115270.0,0.13682]
[1755873048384,2.2101971,115350.0,115270.0,0.15613]
[1755873048582,0.5325612,115320.0,115300.0,0.007]
[1755873048880,0.04119,115310.0,115300.0,0.007]
[1755873049088,0.08086,115310.0,115300.0,0.14382]
[1755873049392,0.33086,115310.0,115300.0,0.0072]
[1755873049682,0.04119,115300.0,115270.0,0.18821773]
[1755873049882,0.04119,115270.0,115250.0,0.24335]
[1755873050081,0.04119,115270.0,115250.0,0.49807331]
[1755873050082,0.13536,115260.0,115250.0,0.49807331]
[1755873050279,0.13536,115280.0,115270.0,0.470933]
[1755873050483,0.17655,115290.0,115280.0,0.15613]
[1755873050674,0.5325612,115300.0,115290.0,0.466918]
[1755873050675,0.13536,115300.0,115290.0,0.466918]
[1755873050983,0.5737512,115320.0,115300.0,0.38017]
[1755873051184,0.17655,115320.0,115310.0,0.2428629]
[1755873051378,0.0192576,115330.0,115320.0,0.4668953]
[1755873051578,0.0192576,115330.0,115320.0,0.38017]
[1755873051981,0.0192576,115330.0,115320.0,0.4668953]
[1755873052285,2.1803612,115360.0,115330.0,0.0867176]
[1755873052286,0.13536,115360.0,115330.0,0.0867176]
[1755873052580,0.22128,115360.0,115350.0,0.15613]
[1755873052976,0.22128,115360.0,115340.0,0.38017]
[1755873053181,0.0002,115350.0,115340.0,0.38037]
[1755873053386,0.0002,115350.0,115340.0,0.4670807]
[1755873053587,0.13536,115380.0,115350.0,0.0867027]
[1755873053777,0.13536,115380.0,115370.0,0.15613]
[1755873053984,0.18029,115380.0,115370.0,0.22404]
[1755873054185,0.22148,115380.0,115350.0,1.61395359]
[1755873054384,0.18029,115370.0,115360.0,0.29295]
[1755873054682,0.04119,115380.0,115360.0,0.38017]
[1755873054683,0.17655,115380.0,115360.0,0.38017]
[1755873055079,0.7540412,115380.0,115360.0,0.38017]
[1755873055585,0.17655,115380.0,115360.0,0.38017]
[1755873055882,0.18329,115370.0,115360.0,0.15613]
[1755873056085,0.13836,115370.0,115360.0,0.08722]
[1755873056386,0.003,115370.0,115360.0,0.4239153]
[1755873056578,0.003,115370.0,115360.0,0.33722]
[1755873056782,0.0032,115370.0,115360.0,0.4241153]
[1755873057076,0.13536,115400.0,115390.0,0.08722]
[1755873057285,0.8719612,115400.0,115370.0,0.1739066]
[1755873057487,0.13536,115390.0,115380.0,0.08722]
[1755873057688,0.13536,115390.0,115380.0,0.33722]
[1755873058087,0.13536,115390.0,115380.0,0.7168502]
[1755873058282,0.04119,115400.0,115380.0,0.7168502]
[1755873058487,0.29921,115400.0,115380.0,0.38017]
[1755873058688,0.13536,115390.0,115380.0,0.38017]
[1755873059287,0.13536,115380.0,115370.0,0.24335]
[1755873059475,0.20604,115390.0,115370.0,0.38017]
[1755873059681,0.38536,115380.0,115370.0,0.38017]
[1755873059987,0.25,115380.0,115370.0,0.38017]
[1755873060287,0.38556,115380.0,115370.0,0.4670579]
[1755873060476,0.2502,115380.0,115370.0,0.4670579]
[1755873060675,0.54841,115380.0,115370.0,0.24355]
[1755873060883,0.38556,115380.0,115370.0,0.3302379]
[1755873061178,0.38556,115380.0,115370.0,0.38037]
[1755873061383,0.38556,115380.0,115370.0,0.3302378]
[1755873061584,0.38556,115380.0,115370.0,0.4670578]
[1755873061790,0.54841,115380.0,115370.0,0.38037]
[1755873061990,0.38556,115380.0,115370.0,0.38037]
[1755873062183,0.54841,115380.0,115370.0,0.08742]
[1755873062379,0.38556,115380.0,115370.0,0.24355]
[1755873062585,0.38556,115380.0,115370.0,0.4670578]
[1755873062785,0.2502,115380.0,115370.0,0.4670578]
[1755873062986,0.38556,115380.0,115370.0,0.38437]
[1755873063292,0.54841,115380.0,115370.0,0.3342378]
[1755873063588,0.2502,115380.0,115370.0,0.4710578]
[1755873063790,0.0002,115380.0,115370.0,0.7210578]
[1755873064183,0.0022,115380.0,115370.0,0.7210578]
[1755873064788,0.0022,115380.0,115370.0,0.7218578]
[1755873064993,0.0022,115380.0,115370.0,0.63437]
[1755873065193,0.0022,115380.0,115370.0,0.7210582]
[1755873066286,4e-05,115400.0,115390.0,0.4668431]
[1755873066487,0.13536,115420.0,115390.0,1.8008431]
[1755873066692,0.23072554,115420.0,115410.0,0.38017]
[1755873066894,0.29821,115420.0,115410.0,0.4668274]
[1755873067090,0.57012554,115420.0,115410.0,0.08722]
[1755873067290,0.57012554,115420.0,115410.0,0.3300081]
[1755873067491,0.36608554,115420.0,115410.0,0.4668281]
[1755873067794,0.20404,115440.0,115420.0,0.0866466]
[1755873068093,0.56472554,115430.0,115420.0,1.33232]
[1755873068292,0.30321,115420.0,115410.0,0.4668282]
[1755873068502,0.14036,115420.0,115410.0,0.4668282]
[1755873068692,0.30321,115420.0,115410.0,0.38017]
[1755873068896,0.30321,115420.0,115410.0,0.4668274]
[1755873069092,0.30321,115420.0,115410.0,0.38017]
[1755873069295,0.14236,115420.0,115410.0,0.24335]
[1755873069494,0.007,115420.0,115410.0,1.2493897]
[1755873069691,0.03904428,115440.0,115420.0,0.086651]
[1755873069997,0.20404,115460.0,115440.0,0.38017]
[1755873070192,0.20404,115450.0,115440.0,0.08722]
[1755873070399,0.16285,115440.0,115430.0,0.38017]
[1755873070588,0.26651554,115440.0,115410.0,0.26040886]
[1755873070796,0.38817554,115430.0,115420.0,0.38017]
[1755873071290,0.38808,115410.0,115390.0,0.01762729]
[1755873071495,0.38808,115400.0,115390.0,0.01762729]
[1755873071694,0.63888,115400.0,115390.0,0.01762729]
[1755873071913,0.63808,115400.0,115390.0,0.01762729]
[1755873072397,0.38808,115400.0,115390.0,0.01762729]
[1755873073197,0.38808,115400.0,115390.0,0.17375729]
[1755873073506,0.38808,115400.0,115390.0,0.01762729]
[1755873073702,0.38808,115400.0,115390.0,0.17375729]
[1755873073892,0.38808,115400.0,115390.0,0.73447149]
[1755873073893,0.13536,115400.0,115390.0,0.73447149]
[1755873074205,0.38808,115400.0,115390.0,0.01862729]
[1755873074799,0.13536,115400.0,115390.0,0.59865149]
[1755873075102,0.13536,115410.0,115400.0,0.24335]
[1755873075292,0.38808,115410.0,115400.0,1.41594]
[1755873075495,0.13536,115410.0,115400.0,1.82207]
[1755873075693,0.13536,115420.0,115410.0,0.4668294]
[1755873075896,0.38808,115430.0,115420.0,0.15613]
[1755873076092,0.29821,115430.0,115420.0,0.24335]
[1755873076501,0.13536,115430.0,115420.0,0.24335]
[1755873076712,0.13536,115440.0,115430.0,0.24335]
[1755873077005,0.16285,115450.0,115440.0,0.38017]
[1755873077204,0.2516,115450.0,115420.0,0.39183795]
[1755873077401,0.25505,115440.0,115420.0,0.40439935]
[1755873077704,0.25505,115430.0,115420.0,0.23485795]
[1755873077896,0.25505,115430.0,115420.0,0.08768795]
[1755873078407,0.25505,115430.0,115420.0,0.24466795]
[1755873078810,0.40159,115430.0,115420.0,0.24466795]
[1755873079006,1.1841512,115430.0,115400.0,0.08289]
[1755873079209,0.40159,115410.0,115390.0,1.73162729]
[1755873079416,0.40159,115410.0,115400.0,0.15698]
[1755873079704,0.14654,115410.0,115400.0,0.4737067]
[1755873079909,0.09175,115430.0,115410.0,0.38704]
[1755873080210,0.09175,115430.0,115420.0,0.4736917]
[1755873080211,0.003,115430.0,115420.0,0.4736917]
[1755873080406,0.40459,115430.0,115400.0,0.2436444]
[1755873080603,0.40159,115420.0,115410.0,0.23006]
[1755873081008,0.40159,115420.0,115390.0,1.96382069]
[1755873081009,0.33875,115420.0,115400.0,0.38704]
[1755873081306,0.40159,115400.0,115390.0,0.01762729]
[1755873081505,0.48529,115400.0,115390.0,0.01762729]
[1755873081707,0.39654,115400.0,115390.0,0.40466729]
[1755873082209,0.14654,115400.0,115390.0,0.65466729]
[1755873082402,0.25505,115420.0,115400.0,0.38704]
[1755873082600,0.25805,115420.0,115410.0,0.30415]
[1755873083000,0.09175,115420.0,115410.0,1.0867112]
[1755873083207,0.003,115420.0,115410.0,1.0867112]
[1755873083514,0.18454855,115440.0,115430.0,0.30415]
[1755873083812,0.18454855,115440.0,115410.0,0.30415]
[1755873084114,0.01824855,115440.0,115420.0,0.30415]
[1755873084410,0.18454855,115440.0,115430.0,0.30415]
[1755873084909,0.01824855,115440.0,115430.0,0.55415]
[1755873085410,0.18754855,115440.0,115430.0,0.39717]
[1755873085611,0.33408855,115440.0,115430.0,0.14717]
[1755873085809,0.58408855,115440.0,115430.0,0.30415]
[1755873086110,0.27124855,115440.0,115430.0,0.30415]
[1755873086408,0.58408855,115440.0,115430.0,0.14717]
[1755873087009,0.58408855,115440.0,115430.0,0.33555209]
[1755873087010,0.02124855,115440.0,115430.0,0.33555209]
[1755873087217,0.003,115440.0,115430.0,1.11811329]
[1755873087515,0.17434799,115480.0,115430.0,1.11811329]
[1755873087516,0.1663,115470.0,115440.0,0.3907833]
[1755873087713,0.01910064,115480.0,115470.0,0.30415]
[1755873087714,0.18540064,115480.0,115470.0,0.30415]
[1755873088409,0.01910064,115480.0,115470.0,1.1733259]
[1755873088711,0.16634,115500.0,115490.0,0.30415]
[1755873088712,0.06987464,115500.0,115490.0,0.30415]
[1755873088906,0.06987464,115500.0,115490.0,0.14717]
[1755873089113,0.06987464,115500.0,115470.0,0.30415]
[1755873089410,0.0873855,115510.0,115480.0,0.14717]
[1755873089616,0.14654,115490.0,115480.0,0.0002]
[1755873089814,0.14634,115490.0,115470.0,0.30415]
[1755873090207,0.14634,115490.0,115480.0,0.14717]
[1755873090515,0.09827,115510.0,115480.0,0.15698]
[1755873090711,0.09827,115500.0,115480.0,0.15698]
[1755873090917,0.09827,115500.0,115480.0,0.30415]
[1755873091213,0.09827,115500.0,115490.0,0.14717]
[1755873091515,0.09827,115500.0,115480.0,0.14717]
[1755873091711,0.09827,115490.0,115480.0,0.14717]
[1755873091914,0.09827,115490.0,115480.0,0.30415]
[1755873092618,0.09827,115500.0,115490.0,0.30415]
[1755873092815,0.09827,115500.0,115490.0,0.14717]
[1755873093120,0.7773712,115500.0,115490.0,0.0002]
[1755873093319,0.24461,115490.0,115470.0,0.14717]
[1755873093619,0.09807,115480.0,115470.0,0.30415]
[1755873093915,0.14654,115510.0,115490.0,0.14717]
[1755873094121,0.09807,115500.0,115490.0,0.30415]
[1755873094425,0.24461,115500.0,115490.0,0.14717]
[1755873094610,0.24461,115500.0,115480.0,0.14717]
[1755873094611,0.24461,115490.0,115480.0,0.14717]
[1755873094918,0.24461,115480.0,115470.0,0.30415]
[1755873095108,0.25,115490.0,115480.0,0.30415]
[1755873095109,0.09807,115490.0,115480.0,0.30415]
[1755873095306,0.49461,115490.0,115480.0,0.14717]
[1755873095512,0.24461,115480.0,115470.0,0.14717]
[1755873096114,0.0008,115500.0,115480.0,0.14717]
[1755873096115,0.09807,115500.0,115480.0,0.14717]
[1755873096313,0.14654,115490.0,115480.0,0.06836854]
[1755873096620,0.14654,115490.0,115470.0,0.30415]
[1755873096819,0.39654,115490.0,115480.0,0.14717]
[1755873097019,0.49461,115490.0,115480.0,0.30435]
[1755873097318,0.24461,115490.0,115480.0,0.30435]
[1755873097520,0.09807,115490.0,115480.0,0.30435]
[1755873097816,0.14654,115500.0,115490.0,0.14717]
[1755873098009,0.24441,115500.0,115490.0,0.14717]
[1755873098213,0.18682,115490.0,115480.0,0.30415]
[1755873098422,0.18682,115490.0,115480.0,0.38704]
[1755873098623,0.18682,115480.0,115470.0,0.14717]
[1755873098814,0.18682,115480.0,115470.0,0.38704]
[1755873099122,0.18682,115510.0,115500.0,0.30415]
[1755873099321,0.18682,115510.0,115500.0,0.38704]
[1755873099823,0.7193812,115510.0,115500.0,0.14717]
[1755873100115,0.14654,115500.0,115480.0,0.4736416]
[1755873100315,0.08875,115500.0,115490.0,0.38704]
[1755873100523,0.18682,115500.0,115490.0,0.38704]
[1755873100708,0.18682,115500.0,115490.0,0.63704]
[1755873101313,0.69657951,115520.0,115490.0,0.63704]
[1755873101514,0.18682,115510.0,115500.0,0.30435]
[1755873101718,0.33336,115510.0,115500.0,0.30435]
[1755873102319,0.18682,115510.0,115500.0,0.30435]
[1755873102518,0.6699445,115510.0,115500.0,0.0002]
[1755873102821,0.0873922,115500.0,115440.0,0.13225497]
[1755873103024,0.0873922,115500.0,115460.0,0.38704]
[1755873103025,0.18662,115470.0,115460.0,0.38704]
[1755873103521,0.33316,115470.0,115460.0,0.14717]
[1755873103714,0.33316,115460.0,115450.0,0.14717]
[1755873103919,0.33316,115460.0,115440.0,0.16487543]
[1755873103920,0.33316,115450.0,115440.0,0.16487543]
[1755873104419,0.8657212,115470.0,115440.0,0.40474543]
[1755873104621,0.18662,115460.0,115450.0,0.38704]
[1755873104921,0.33316,115460.0,115450.0,0.14717]
[1755873105625,0.7657111,115480.0,115450.0,0.38704]
[1755873105819,0.33316,115480.0,115470.0,0.30415]
[1755873106123,0.18662,115480.0,115470.0,0.38724]
[1755873106518,0.33316,115480.0,115470.0,0.30435]
[1755873107021,0.18662,115480.0,115470.0,0.38724]
[1755873107226,0.6648471,115480.0,115470.0,0.0002]
[1755873107525,0.6656471,115480.0,115470.0,0.0002]
[1755873107714,0.6656471,115480.0,115450.0,0.15191]
[1755873107715,0.31791,115470.0,115450.0,0.15191]
[1755873107919,0.31791,115460.0,115450.0,0.15191]
[1755873108117,0.56791,115460.0,115450.0,0.002]
[1755873108316,0.56791,115460.0,115450.0,0.30735]
[1755873108523,0.56791,115460.0,115450.0,0.14991]
[1755873109029,0.4782417,115460.0,115440.0,0.14991]
[1755873109217,0.31791,115450.0,115440.0,0.14991]
[1755873109433,0.09466,115450.0,115440.0,0.4813467]
[1755873109620,0.09466,115460.0,115450.0,0.39471]
[1755873109928,0.23628,115470.0,115460.0,0.30535]
[1755873110322,0.48628,115470.0,115460.0,0.30535]
[1755873110522,1.07150017,115470.0,115460.0,0.14991]
[1755873110719,1.07150017,115470.0,115460.0,0.30535]
[1755873110921,0.23628,115480.0,115470.0,0.14991]
[1755873111115,0.23628,115480.0,115470.0,0.39491]
[1755873111116,0.09466,115480.0,115470.0,0.39491]
[1755873111822,0.09466,115480.0,115470.0,0.15011]
[1755873111823,0.4045162,115480.0,115470.0,0.15011]
[1755873112023,0.98973637,115480.0,115470.0,0.0002]
[1755873112617,0.4045162,115480.0,115470.0,0.0002]
[1755873113031,0.31791,115480.0,115470.0,0.30555]
[1755873113231,0.4045164,115480.0,115470.0,0.15011]
[1755873113529,0.98973657,115480.0,115470.0,0.0002]
[1755873113723,0.31791,115480.0,115470.0,0.15011]
[1755873114323,0.90313017,115480.0,115470.0,0.15011]
[1755873114619,1.23973657,115480.0,115470.0,0.0002]
[1755873115229,0.31771,115460.0,115450.0,0.14991]
[1755873115424,0.90293017,115460.0,115450.0,0.14991]
[1755873115830,0.31771,115460.0,115450.0,0.14991]
[1755873116026,0.22325,115460.0,115450.0,0.30535]
[1755873116225,0.31771,115470.0,115460.0,0.30535]
[1755873116431,0.17609,115470.0,115460.0,0.39471]
[1755873116942,0.31771,115480.0,115470.0,0.30535]
[1755873117132,0.08163,115480.0,115470.0,0.39471]
[1755873117335,0.09946539,115490.0,115480.0,0.39471]
[1755873117538,0.01783539,115490.0,115480.0,0.39471]
[1755873117933,0.33554539,115490.0,115480.0,0.14991]
[1755873118141,0.17609,115480.0,115470.0,0.30535]
[1755873118433,1.08127546,115490.0,115480.0,0.14991]
[1755873118434,0.09946539,115490.0,115480.0,0.14991]
[1755873118640,0.19392539,115490.0,115480.0,0.39491]
[1755873118840,0.09946539,115490.0,115480.0,0.64491]
[1755873119042,0.01783539,115490.0,115480.0,0.64491]